lending/lending_fUSD_20260119
["ID","MTS","AMOUNT","RATE_DAILY","PERIOD"]
[402677297,1768794631655,-383.08207448,0.00016577,2]
[402677298,1768794631666,-352.59879329,0.00016577,2]
[402677302,1768794637684,-268.66432624,0.00016577,2]
[402677303,1768794637733,-451.15504761,0.00016577,2]
[402677304,1768794637787,-1724.96975838,0.00016577,2]
[402677305,1768794637796,-768.99,0.00016585,2]
[402677306,1768794637806,-1200.0,0.00016613,2]
[402677307,1768794637815,-1200.0,0.00016614,2]
[402677308,1768794637825,-5958.25,0.00016615,2]
[402677309,1768794637835,-166.66,0.00016662,2]
[402677310,1768794637845,-500.0,0.00016767,2]
[402677311,1768794637855,-182.82,0.00016781,2]
[402677344,1768794638262,-150.29,0.00016787,2]
[402677346,1768794638298,-587.10743799,0.00016819,2]
[402677347,1768794638308,-1000.0,0.00016832,2]
[402677348,1768794638317,-150.29,0.00016892,2]
[402677349,1768794638327,-3240.0,0.00016908,2]
[402677350,1768794638345,-150.29,0.00016997,2]
[402677351,1768794638357,-166.66,0.00016999,2]
[402677352,1768794638367,-250.0,0.00017,2]
[402677353,1768794638377,-150.0,0.00017098,2]
[402677354,1768794638387,-404.79,0.00017099,2]
[402677355,1768794638397,-549.685089,0.00017099,2]
[402677356,1768794638407,-585.6094434,0.00017099,2]
[402677357,1768794638417,-1999.0,0.00017099,2]
[402677358,1768794638427,-731.54901016,0.00017099,2]
[402677359,1768794638437,-574.12855637,0.00017099,2]
[402677360,1768794638447,-244.57291966,0.00017099,2]
[402677361,1768794638456,-479.38614015,0.00017099,2]
[402677362,1768794638481,-1509.9053218,0.00017099,2]
[402677363,1768794638491,-174.61919141,0.00017099,2]
[402677364,1768794638501,-151.41290159,0.00017099,2]
[402677365,1768794638510,-151.0,0.00017099,2]
[402677366,1768794638520,-151.0,0.00017099,2]
[402677367,1768794638530,-322.6107,0.00017099,2]
[402677368,1768794638540,-151.0,0.00017099,2]
[402677369,1768794638551,-151.0,0.00017099,2]
[402677370,1768794638560,-104.46553099,0.00017099,2]
[402677372,1768794638575,-515.53446901,0.00017099,2]
[402677375,1768794638585,-151.0,0.00017099,2]
[402677376,1768794638596,-1000.0,0.00017099,2]
[402677378,1768794638607,-1000.0,0.00017099,2]
[402677380,1768794638617,-151.0,0.00017099,2]
[402677383,1768794638633,-1000.0,0.00017099,2]
[402677385,1768794638642,-1000.0,0.00017099,2]
[402677387,1768794638652,-1000.0,0.00017099,2]
[402677389,1768794638661,-1000.0,0.00017099,2]
[402677391,1768794638671,-151.0,0.00017099,2]
[402677393,1768794638681,-500.0,0.00017099,2]
[402677394,1768794638694,-1072.59941835,0.00017099,2]
[402677397,1768794638704,-151.0,0.00017099,2]
[402677399,1768794638714,-512.65831909,0.00017099,2]
[402677401,1768794638724,-151.0,0.00017099,2]
[402677403,1768794638734,-201.89279297,0.00017099,2]
[402677408,1768794638777,-48.10720703,0.00017099,2]
[402677410,1768794638787,-250.0,0.00017099,2]
[402677412,1768794638796,-151.0,0.00017099,2]
[402677414,1768794638806,-151.0,0.00017099,2]
[402677416,1768794638816,-250.0,0.00017099,2]
[402677418,1768794638825,-250.0,0.00017099,2]
[402677420,1768794638835,-250.0,0.00017099,2]
[402677422,1768794638844,-226.36924572,0.00017099,2]
[402677424,1768794638854,-3002.70085788,0.00017099,2]
[402677426,1768794638863,-150.29,0.00017102,2]
[402677428,1768794638873,-292.83,0.00017114,2]
[402677431,1768794638888,-1402.5621189,0.0001716,2]
[402677433,1768794638903,-7.89593609,0.0001716,2]
[402677435,1768794638913,-587.10743799,0.0001716,2]
[402677437,1768794638924,-188.25,0.00017172,2]
[402677439,1768794638935,-662.56,0.000172,2]
[402677441,1768794638946,-108.72124259,0.00017207,2]
[402677443,1768794638958,-41.56875741,0.00017207,2]
[402677444,1768794638968,-1022.83541744,0.00017235,2]
[402677446,1768794638982,-3444.940875,0.00017235,2]
[402677531,1768794640050,-139637.10600756,0.00017235,2]
[402677532,1768794640060,-1000.0,0.0001726,2]
[402677533,1768794640070,-150.29,0.00017312,2]
[402677534,1768794640079,-166.66,0.00017335,2]
[402677535,1768794640088,-541.0,0.0001736,2]
[402677536,1768794640098,-404.79,0.00017373,2]
[402677537,1768794640107,-150.29,0.00017417,2]
[402677538,1768794640116,-500.0,0.000175,2]
[402677539,1768794640127,-14810.0,0.00017509,2]
[402677540,1768794640136,-168.0,0.00017518,2]
[402677541,1768794640146,-150.29,0.00017522,2]
[402677542,1768794640156,-1000.0,0.00017534,2]
[402677543,1768794640165,-565.8,0.00017589,2]
[402677544,1768794640175,-168.0,0.00017625,2]
[402677545,1768794640184,-565.8,0.00017626,2]
[402677546,1768794640194,-150.29,0.00017627,2]
[402677547,1768794640203,-4113.9014,0.0001763,2]
[402677548,1768794640213,-82328.2612,0.0001763,2]
[402677549,1768794640222,-404.79,0.00017647,2]
[402677550,1768794640231,-595.37131296,0.00017647,2]
[402677551,1768794640241,-181.08010149,0.00017647,2]
[402677552,1768794640250,-565.8,0.00017664,2]
[402677553,1768794640259,-166.66,0.00017672,2]
[402677554,1768794640268,-500.0,0.00017688,2]
[402677555,1768794640278,-500.0,0.00017688,2]
[402677556,1768794640288,-500.0,0.00017688,2]
[402677557,1768794640298,-500.0,0.00017688,2]
[402677558,1768794640307,-500.0,0.00017688,2]
[402677560,1768794640317,-500.0,0.00017688,2]
[402677562,1768794640327,-500.0,0.00017688,2]
[402677564,1768794640336,-500.0,0.00017688,2]
[402677566,1768794640346,-500.0,0.00017688,2]
[402677567,1768794640357,-500.0,0.00017688,2]
[402677568,1768794640366,-500.0,0.00017688,2]
[402677569,1768794640375,-500.0,0.00017688,2]
[402677570,1768794640385,-500.0,0.00017688,2]
[402677571,1768794640395,-500.0,0.00017688,2]
[402677572,1768794640404,-500.0,0.00017688,2]
[402677573,1768794640413,-500.0,0.00017688,2]
[402677574,1768794640423,-500.0,0.00017688,2]
[402677575,1768794640432,-500.0,0.00017688,2]
[402677576,1768794640442,-500.0,0.00017688,2]
[402677577,1768794640452,-500.0,0.00017688,2]
[402677578,1768794640462,-500.0,0.00017688,2]
[402677579,1768794640471,-500.0,0.00017688,2]
[402677580,1768794640481,-500.0,0.00017688,2]
[402677581,1768794640491,-500.0,0.00017688,2]
[402677582,1768794640501,-500.0,0.00017688,2]
[402677583,1768794640511,-500.0,0.00017688,2]
[402677584,1768794640520,-500.0,0.00017688,2]
[402677585,1768794640531,-500.0,0.00017688,2]
[402677586,1768794640540,-500.0,0.00017688,2]
[402677587,1768794640549,-500.0,0.00017688,2]
[402677588,1768794640559,-500.0,0.00017688,2]
[402677589,1768794640568,-500.0,0.00017688,2]
[402677590,1768794640578,-500.0,0.00017688,2]
[402677591,1768794640587,-500.0,0.00017688,2]
[402677592,1768794640597,-500.0,0.00017688,2]
[402677593,1768794640606,-500.0,0.00017688,2]
[402677594,1768794640615,-500.0,0.00017688,2]
[402677595,1768794640625,-500.0,0.00017688,2]
[402677596,1768794640635,-500.0,0.00017688,2]
[402677597,1768794640644,-500.0,0.00017688,2]
[402677598,1768794640654,-500.0,0.00017688,2]
[402677599,1768794640663,-500.0,0.00017688,2]
[402677600,1768794640673,-500.0,0.00017688,2]
[402677601,1768794640682,-500.0,0.00017688,2]
[402677602,1768794640691,-500.0,0.00017688,2]
[402677603,1768794640701,-500.0,0.00017688,2]
[402677604,1768794640710,-500.0,0.00017688,2]
[402677605,1768794640719,-500.0,0.00017688,2]
[402677606,1768794640728,-500.0,0.00017688,2]
[402677607,1768794640738,-500.0,0.00017688,2]
[402677608,1768794640747,-500.0,0.00017688,2]
[402677609,1768794640756,-490.56930465,0.00017688,2]
[402677610,1768794640766,-329.25744404,0.00017688,2]
[402677611,1768794640775,-500.0,0.00017688,2]
[402677612,1768794640784,-500.0,0.00017688,2]
[402677613,1768794640794,-500.0,0.00017688,2]
[402677614,1768794640803,-500.0,0.00017688,2]
[402677615,1768794640812,-500.0,0.00017688,2]
[402677616,1768794640821,-500.0,0.00017688,2]
[402677617,1768794640831,-500.0,0.00017688,2]
[402677618,1768794640840,-500.0,0.00017688,2]
[402677619,1768794640850,-14810.0,0.00017689,2]
[402677620,1768794640859,-1056.7643,0.00017699,2]
[402677621,1768794640869,-236.8728,0.00017699,2]
[402677622,1768794640878,-150.0,0.00017699,2]
[402677623,1768794640888,-150.0,0.00017699,2]
[402677624,1768794640900,-150.0,0.00017699,2]
[402677625,1768794640910,-150.0,0.00017699,2]
[402677626,1768794640920,-500.0,0.00017699,2]
[402677627,1768794640929,-150.0,0.00017699,2]
[402677628,1768794640940,-150.0,0.00017699,2]
[402677629,1768794640949,-150.0,0.00017699,2]
[402677630,1768794640959,-150.0,0.00017699,2]
[402677631,1768794640971,-150.0,0.00017699,2]
[402677632,1768794640982,-150.0,0.00017699,2]
[402677633,1768794640991,-150.0,0.00017699,2]
[402677634,1768794641001,-500.0,0.00017699,2]
[402677635,1768794641010,-500.0,0.00017699,2]
[402677636,1768794641019,-500.0,0.00017699,2]
[402677637,1768794641028,-500.0,0.00017699,2]
[402677638,1768794641038,-500.0,0.00017699,2]
[402677639,1768794641047,-500.0,0.00017699,2]
[402677640,1768794641055,-150.0,0.00017699,2]
[402677641,1768794641064,-150.0,0.00017699,2]
[402677642,1768794641073,-500.0,0.00017699,2]
[402677643,1768794641081,-500.0,0.00017699,2]
[402677644,1768794641091,-150.0,0.00017699,2]
[402677645,1768794641100,-565.8,0.00017701,2]
[402677646,1768794641109,-1700.0,0.00017726,7]
[402677647,1768794641118,-5167.0,0.00017731,2]
[402677648,1768794641128,-565.8,0.00017738,2]
[402677649,1768794641137,-500.0,0.00017754,2]
[402677650,1768794641146,-150.0,0.00017754,2]
[402677651,1768794641156,-150.0,0.00017754,2]
[402677652,1768794641166,-150.0,0.00017754,2]
[402677653,1768794641176,-150.0,0.00017754,2]
[402677654,1768794641185,-500.0,0.00017754,2]
[402677655,1768794641194,-500.0,0.00017754,2]
[402677656,1768794641203,-500.0,0.00017754,2]
[402677657,1768794641212,-500.0,0.00017754,2]
[402677658,1768794641222,-500.0,0.00017754,2]
[402677659,1768794641231,-500.0,0.00017754,2]
[402677660,1768794641241,-510.20107103,0.00017754,2]
[402677661,1768794641250,-500.0,0.00017754,2]
[402677662,1768794641260,-150.0,0.00017754,2]
[402677663,1768794641270,-151.60783167,0.00017772,2]
[402677664,1768794641279,-565.8,0.00017776,2]
[402677665,1768794641288,-2597.6050963,0.00017783,2]
[402677666,1768794641298,-2597.60509626,0.00017796,2]
[402677667,1768794641307,-2500.0,0.00017799,2]
[402677668,1768794641316,-2000.0,0.000178,2]
[402677669,1768794641327,-2827.96897965,0.000178,2]
[402677670,1768794641337,-188.03089005,0.000178,2]
[402677671,1768794641347,-1000.0,0.00017808,2]
[402677672,1768794641356,-500.0,0.00017809,2]
[402677673,1768794641366,-200.0,0.00017809,2]
[402677674,1768794641375,-200.0,0.00017809,2]
[402677675,1768794641386,-200.0,0.00017809,2]
[402677676,1768794641395,-151.67571,0.00017809,2]
[402677677,1768794641404,-500.0,0.00017809,2]
[402677678,1768794641415,-375.80053399,0.00017809,2]
[402677679,1768794641424,-500.0,0.00017809,2]
[402677680,1768794641435,-500.0,0.00017809,2]
[402677681,1768794641444,-500.0,0.00017809,2]
[402677682,1768794641453,-500.0,0.00017809,2]
[402677683,1768794641463,-500.0,0.00017809,2]
[402677684,1768794641472,-200.0,0.00017809,2]
[402677685,1768794641482,-2597.60509626,0.00017809,2]
[402677686,1768794641491,-2827.96897956,0.00017811,2]
[402677687,1768794641501,-565.8,0.00017813,2]
[402677688,1768794641510,-188.03088998,0.00017814,2]
[402677689,1768794641520,-2597.60509626,0.00017822,2]
[402677690,1768794641530,-2827.96897956,0.00017822,2]
[402677691,1768794641539,-168.0,0.00017828,2]
[402677692,1768794641550,-188.03088998,0.00017829,2]
[402677693,1768794641559,-2827.96897956,0.00017833,2]
[402677694,1768794641569,-2597.60509626,0.00017835,2]
[402677695,1768794641578,-188.03088998,0.00017843,2]
[402677696,1768794641876,-2827.96897956,0.00017844,2]
[402677697,1768794641886,-2597.60509626,0.00017848,2]
[402677698,1768794641896,-357.88024942,0.00017849,2]
[402677699,1768794641909,-631.34318088,0.00017849,2]
[402677700,1768794641920,-944.45164044,0.00017849,2]
[402677701,1768794641931,-1277.8722,0.00017849,2]
[402677702,1768794641942,-565.8,0.00017851,2]
[402677703,1768794641951,-2827.96897956,0.00017856,2]
[402677704,1768794641962,-188.03088998,0.00017857,2]
[402677705,1768794641972,-2597.60509626,0.00017861,2]
[402677706,1768794641982,-500.0,0.00017863,2]
[402677707,1768794641991,-500.0,0.00017863,2]
[402677708,1768794642002,-500.0,0.00017863,2]
[402677709,1768794642013,-585.36842151,0.00017863,2]
[402677710,1768794642023,-500.0,0.00017863,2]
[402677711,1768794642032,-500.0,0.00017863,2]
[402677712,1768794642043,-500.0,0.00017863,2]
[402677713,1768794642054,-2827.96897956,0.00017867,2]
[402677714,1768794642064,-14810.0,0.0001787,2]
[402677715,1768794642073,-188.03088998,0.00017871,2]
[402677716,1768794642082,-2597.60509626,0.00017874,2]
[402677717,1768794642091,-2827.96897956,0.00017878,2]
[402677718,1768794642100,-188.03088998,0.00017886,2]
[402677719,1768794642109,-2597.60509626,0.00017887,2]
[402677720,1768794642119,-565.8,0.00017888,2]
[402677721,1768794642128,-2827.96897956,0.00017889,2]
[402677722,1768794642137,-899.667,0.00017896,2]
[402677723,1768794642146,-5167.0,0.00017899,2]
[402677724,1768794642156,-216.56488938,0.00017899,2]
[402677725,1768794642165,-314.71690677,0.00017899,2]
[402677726,1768794642175,-543.2458588,0.00017899,2]
[402677727,1768794642184,-155.0,0.00017899,2]
[402677728,1768794642193,-500.0,0.00017899,2]
[402677729,1768794642203,-500.0,0.00017899,2]
[402677730,1768794642214,-500.0,0.00017899,2]
[402677731,1768794642223,-500.0,0.00017899,2]
[402677732,1768794642233,-464.31341913,0.00017899,2]
[402677733,1768794642242,-500.0,0.00017899,2]
[402677734,1768794642251,-500.0,0.00017899,2]
[402677735,1768794642260,-500.0,0.00017899,2]
[402677736,1768794642270,-500.0,0.00017899,2]
[402677737,1768794642278,-500.0,0.00017899,2]
[402677738,1768794642288,-153.52447902,0.00017899,2]
[402677739,1768794642297,-284.80296953,0.00017899,2]
[402677740,1768794642307,-525.29097459,0.00017899,2]
[402677741,1768794642316,-500.0,0.00017899,2]
[402677742,1768794642325,-500.0,0.00017899,2]
[402677743,1768794642335,-301.40535093,0.00017899,2]
[402677744,1768794642345,-19078.28121128,0.000179,3]
[402677745,1768794642355,-2090.9468915,0.000179,2]
[402677746,1768794642364,-376.5789,0.000179,2]
[402677747,1768794642374,-417.0916,0.000179,2]
[402677748,1768794642383,-2597.60509626,0.000179,2]
[402677749,1768794642393,-2827.96897956,0.000179,2]
[402677750,1768794642402,-188.03088998,0.000179,2]
[402677751,1768794642412,-156.77393671,0.000179,2]
[402677752,1768794642421,-156.77393671,0.000179,2]
[402677753,1768794642431,-156.77393671,0.000179,2]
[402677754,1768794642440,-156.77393671,0.000179,2]
[402677755,1768794642449,-156.77393671,0.000179,2]
[402677756,1768794642458,-156.77393671,0.000179,2]
[402677758,1768794642468,-546.8830839,0.000179,2]
[402677759,1768794642478,-3664.0,0.000179,2]
[402677760,1768794642487,-150.0,0.00017918,2]
[402677762,1768794642497,-500.0,0.00017918,2]
[402677764,1768794642507,-500.0,0.00017918,2]
[402677766,1768794642516,-404.79,0.00017921,2]
[402677767,1768794642525,-565.8,0.00017925,2]
[402677768,1768794642534,-565.8,0.00017963,2]
[402677769,1768794642543,-150.0,0.00017973,2]
[402677770,1768794642553,-500.0,0.00017973,2]
[402677771,1768794642562,-500.0,0.00017973,2]
[402677772,1768794642572,-151.0,0.00017987,2]
[402677773,1768794642581,-151.0,0.00017987,2]
[402677774,1768794642591,-1264.0,0.00017987,2]
[402677775,1768794642600,-152.0,0.00017987,2]
[402677776,1768794642609,-151.0,0.00017987,2]
[402677777,1768794642618,-1264.0,0.00017987,2]
[402677778,1768794642627,-151.0,0.00017987,2]
[402677779,1768794642636,-1264.0,0.00017987,2]
[402677780,1768794642646,-151.0,0.00017987,2]
[402677781,1768794642655,-1264.0,0.00017987,2]
[402677782,1768794642664,-151.0,0.00017987,2]
[402677783,1768794642673,-151.0,0.00017987,2]
[402677784,1768794642683,-151.0,0.00017987,2]
[402677785,1768794642692,-151.0,0.00017987,2]
[402677786,1768794642701,-151.0,0.00017987,2]
[402677787,1768794642710,-250.0,0.00017992,2]
[402677788,1768794642719,-1310.06011249,0.00017992,2]
[402677789,1768794642728,-3230.1068095,0.00017998,2]
[402677790,1768794642737,-150.0,0.00017999,2]
[402677791,1768794642746,-150.0,0.00017999,2]
[402677792,1768794642756,-804.95351762,0.00018,3]
[402677793,1768794642765,-1635536.34913306,0.00018,2]
[402677795,1768794643091,-1.7e-07,0.00018,2]
[402677799,1768794643286,-480.17429951,0.00018,2]
[402677800,1768794643310,-626.94468457,0.00018,2]
[402677801,1768794643326,-694976.81179595,0.00018,2]
[402677802,1768794643337,-446689.88543926,0.00018,2]
[402677803,1768794643348,-21000.0,0.00018,2]
[402677804,1768794643408,-20.877072,0.00018,2]
[402677805,1768794645574,-2100.85685,0.00018,2]
[402677806,1768794645680,-14000.0,0.00018,2]
[402677807,1768794645839,-268.61567066,0.00018,2]
[402677808,1768794645893,-615.30886033,0.00018,2]
[402677809,1768794645950,-2478.61934173,0.00018,2]
[402677820,1768794824560,159.19,0.00013356,2]
[402677821,1768794973743,7668.24,0.00013693,2]
[402677822,1768795379824,150.0,0.000273,120]
[402677823,1768795445924,-500.0,0.0001618,2]
[402677824,1768795445949,-197.8228604,0.00016256,2]
[402677825,1768795520863,-155.35221,0.000162,2]
[402677826,1768795520885,-58.98717405,0.000162,2]
[402677827,1768795524619,-91.01282595,0.000162,2]
[402677828,1768795524641,-150.0,0.000162,2]
[402677829,1768795524663,-49.70464733,0.000162,2]
[402677830,1768795655900,-327.60277528,0.00016154,2]
[402677831,1768795657989,-199.89891448,0.00016154,2]
[402677832,1768795659558,-300.0,0.00016154,2]
[402677833,1768795661744,-166.66,0.00016154,2]
[402677834,1768795663392,-151.08296096,0.00016154,2]
[402677835,1768795665517,-231.39722472,0.00016154,2]
[402677836,1768795667047,-250.0,0.00016154,2]
[402677837,1768795670017,-225.77812456,0.00016154,2]
[402677838,1768795670039,-51.65153409,0.000162,2]
[402677839,1768795761274,-48.64381858,0.000162,2]
[402677840,1768795781291,150.0,0.00016077,2]
[402677857,1768795832896,-178.7560396,0.00016256,2]
[402677858,1768795832905,-1600.0,0.00016356,2]
[402677859,1768795832915,-357.71,0.00016477,2]
[402677860,1768795832925,-1459.26,0.00016767,2]
[402677861,1768795832935,-300.0,0.000168,6]
[402677862,1768795832944,-300.0,0.00016871,2]
[402677863,1768795832954,-1200.0,0.00016871,2]
[402677864,1768795832963,-4119.50057702,0.00016871,2]
[402677865,1768795832972,-7221.2884333,0.00016872,2]
[402677866,1768795832982,-600.0,0.000169,6]
[402677867,1768795832991,-300.0,0.000169,2]
[402677868,1768795833001,-300.0,0.00016962,2]
[402677869,1768795833010,-247183.36188996,0.00016963,2]
[402677870,1768795833022,-7588.95071471,0.00016963,2]
[402677871,1768795833034,-2277.12736625,0.00016963,2]
[402677872,1768795833048,-289.14843026,0.00016963,2]
[402677873,1768795833060,-1614.4797699,0.00016963,2]
[402677874,1768795833138,-40022.21037248,0.00016963,2]
[402677875,1768795833150,-2413.61553984,0.00016963,2]
[402677876,1768795833190,-3041.31296243,0.00016963,2]
[402677877,1768795833204,-341.348914,0.00016963,2]
[402677878,1768795837942,-1828.59812512,0.00016963,2]
[402677879,1768795837996,-732.60047566,0.00016963,2]
[402677882,1768795840091,-2050.77884625,0.00016963,2]
[402677883,1768795840141,-2492.12260092,0.00016963,2]
[402677884,1768795840153,-381.5987222,0.00016963,2]
[402677885,1768795840200,-455.25464695,0.00016963,2]
[402677886,1768795840215,-687287.49062307,0.00016963,2]
[402677887,1768795840226,-151.0,0.00016969,2]
[402677888,1768795840237,-151.0,0.00016971,2]
[402677889,1768795840250,-151.0,0.00016973,2]
[402677890,1768795840259,-151.0,0.00016973,2]
[402677891,1768795840271,-151.0,0.00016973,2]
[402677892,1768795840280,-151.0,0.00016976,2]
[402677893,1768795840290,-151.0,0.00016977,2]
[402677894,1768795840301,-234.27,0.00016985,2]
[402677895,1768795840311,-4119.50057694,0.00016985,2]
[402677896,1768795840322,-7221.28843325,0.00016986,2]
[402677897,1768795840333,-166.66,0.00016987,2]
[402677898,1768795840342,-1000.0,0.00017061,2]
[402677899,1768795840353,-500.0,0.00017061,2]
[402677900,1768795840363,-500.0,0.00017061,2]
[402677901,1768795840372,-500.0,0.00017061,2]
[402677902,1768795840382,-500.0,0.00017061,2]
[402677903,1768795840392,-500.0,0.00017061,2]
[402677904,1768795840402,-500.0,0.00017061,2]
[402677906,1768795840412,-211.17174387,0.00017061,2]
[402677907,1768795840422,-500.0,0.00017061,2]
[402677909,1768795840432,-641.14722686,0.00017061,2]
[402677910,1768795840441,-482.9257444,0.00017061,2]
[402677911,1768795840450,-500.0,0.00017061,2]
[402677912,1768795840461,-500.0,0.00017061,2]
[402677914,1768795840470,-500.0,0.00017061,2]
[402677915,1768795840480,-500.0,0.00017061,2]
[402677916,1768795840489,-500.0,0.00017061,2]
[402677917,1768795840499,-500.0,0.00017061,2]
[402677918,1768795840509,-500.0,0.00017061,2]
[402677919,1768795840519,-500.0,0.00017061,2]
[402677920,1768795840529,-500.0,0.00017061,2]
[402677921,1768795840539,-500.0,0.00017061,2]
[402677922,1768795840551,-500.0,0.00017061,2]
[402677923,1768795840562,-500.0,0.00017061,2]
[402677924,1768795840572,-500.0,0.00017061,2]
[402677925,1768795840581,-500.0,0.00017061,2]
[402677926,1768795840591,-500.0,0.00017061,2]
[402677927,1768795840600,-500.0,0.00017061,2]
[402677928,1768795840610,-500.0,0.00017061,2]
[402677929,1768795840623,-500.0,0.00017061,2]
[402677930,1768795840636,-500.0,0.00017061,2]
[402677931,1768795840646,-500.0,0.00017061,2]
[402677932,1768795840656,-500.0,0.00017061,2]
[402677933,1768795840666,-500.0,0.00017061,2]
[402677934,1768795840910,-500.0,0.00017061,2]
[402677935,1768795840943,-500.0,0.00017061,2]
[402677936,1768795840952,-500.0,0.00017061,2]
[402677937,1768795840963,-500.0,0.00017061,2]
[402677938,1768795840972,-500.0,0.00017061,2]
[402677939,1768795840981,-500.0,0.00017061,2]
[402677940,1768795840991,-500.0,0.00017061,2]
[402677941,1768795841000,-500.0,0.00017061,2]
[402677942,1768795841010,-500.0,0.00017061,2]
[402677943,1768795841019,-500.0,0.00017061,2]
[402677944,1768795841028,-500.0,0.00017061,2]
[402677945,1768795841038,-500.0,0.00017061,2]
[402677946,1768795841047,-500.0,0.00017061,2]
[402677947,1768795841056,-500.0,0.00017061,2]
[402677948,1768795841066,-500.0,0.00017061,2]
[402677949,1768795841076,-500.0,0.00017061,2]
[402677950,1768795841086,-500.0,0.00017061,2]
[402677951,1768795841095,-500.0,0.00017061,2]
[402677952,1768795841105,-500.0,0.00017061,2]
[402677953,1768795841114,-500.0,0.00017061,2]
[402677954,1768795841123,-500.0,0.00017061,2]
[402677955,1768795841132,-500.0,0.00017061,2]
[402677956,1768795841141,-500.0,0.00017061,2]
[402677957,1768795841150,-500.0,0.00017061,2]
[402677958,1768795841159,-500.0,0.00017061,2]
[402677959,1768795841169,-500.0,0.00017061,2]
[402677960,1768795841178,-500.0,0.00017061,2]
[402677961,1768795841188,-500.0,0.00017061,2]
[402677962,1768795841201,-500.0,0.00017061,2]
[402677963,1768795841210,-500.0,0.00017061,2]
[402677964,1768795841220,-500.0,0.00017061,2]
[402677965,1768795841230,-914.56528697,0.00017061,2]
[402677966,1768795841239,-914.56528697,0.00017061,2]
[402677967,1768795841248,-914.56528697,0.00017061,2]
[402677968,1768795841258,-914.56528697,0.00017061,2]
[402677969,1768795841268,-914.56528697,0.00017061,2]
[402677970,1768795841280,-914.56528697,0.00017061,2]
[402677971,1768795841290,-914.56528697,0.00017061,2]
[402677972,1768795841299,-914.56528697,0.00017061,2]
[402677973,1768795841311,-914.56528697,0.00017061,2]
[402677974,1768795841320,-914.56528697,0.00017061,2]
[402677975,1768795841329,-914.56528697,0.00017061,2]
[402677976,1768795841341,-914.56528697,0.00017061,2]
[402677977,1768795841351,-914.56528697,0.00017061,2]
[402677978,1768795841362,-914.56528697,0.00017061,2]
[402677979,1768795841371,-914.56528697,0.00017061,2]
[402677980,1768795841381,-914.56528697,0.00017061,2]
[402677981,1768795841390,-914.56528697,0.00017061,2]
[402677982,1768795841400,-914.56528697,0.00017061,2]
[402677983,1768795841409,-914.56528697,0.00017061,2]
[402677984,1768795841418,-914.56528697,0.00017061,2]
[402677985,1768795841431,-914.56528697,0.00017061,2]
[402677986,1768795841441,-914.56528697,0.00017061,2]
[402677987,1768795841451,-914.56528697,0.00017061,2]
[402677988,1768795841463,-914.56528697,0.00017061,2]
[402677989,1768795841473,-914.56528697,0.00017061,2]
[402677990,1768795841484,-914.56528697,0.00017061,2]
[402677991,1768795841496,-914.56528697,0.00017061,2]
[402677992,1768795841507,-914.56528697,0.00017061,2]
[402677993,1768795841516,-914.56528697,0.00017061,2]
[402677994,1768795841528,-914.56528697,0.00017061,2]
[402677995,1768795841538,-914.56528697,0.00017061,2]
[402677996,1768795841553,-914.56528697,0.00017061,2]
[402677997,1768795841562,-914.56528697,0.00017061,2]
[402677998,1768795841571,-914.56528697,0.00017061,2]
[402677999,1768795841580,-914.56528689,0.00017061,2]